fUSD/lending_fUSD_20250213
["ID","MTS","AMOUNT","RATE_DAILY","PERIOD"]
[353007041,1739485873980,-500.0,0.00013863,2]
[353007042,1739485873990,-500.0,0.00013863,2]
[353007043,1739485874000,-500.0,0.00013863,2]
[353007044,1739485874010,-811.86,0.00013863,2]
[353007045,1739485874023,-988.11,0.00013863,2]
[353007046,1739485874033,-500.0,0.00013863,2]
[353007047,1739485874043,-1906.79,0.00013863,2]
[353007048,1739485874053,-500.0,0.00013863,2]
[353007049,1739485874063,-1427.42,0.00013863,2]
[353007050,1739485874074,-524.63,0.00013863,2]
[353007051,1739485874083,-500.0,0.00013863,2]
[353007052,1739485874094,-500.0,0.00013863,2]
[353007053,1739485874105,-881.54,0.00013863,2]
[353007054,1739485874116,-500.0,0.00013863,2]
[353007055,1739485874126,-500.0,0.00013863,2]
[353007056,1739485874137,-865.9,0.00013863,2]
[353007057,1739485874147,-500.0,0.00013863,2]
[353007058,1739485874156,-1372.61,0.00013863,2]
[353007059,1739485874167,-500.0,0.00013863,2]
[353007060,1739485874177,-500.0,0.00013863,2]
[353007061,1739485874187,-501.80698467,0.00013863,2]
[353007062,1739485874198,-758.33,0.00013863,2]
[353007063,1739485874208,-500.0,0.00013863,2]
[353007064,1739485874218,-1840.97,0.00013863,2]
[353007065,1739485874229,-1636.34,0.00013863,2]
[353007066,1739485874239,-500.0,0.00013863,2]
[353007067,1739485874250,-1782.82,0.00013863,2]
[353007068,1739485874260,-1035.24,0.00013863,2]
[353007069,1739485874270,-500.0,0.00013863,2]
[353007070,1739485874280,-500.0,0.00013863,2]
[353007071,1739485874290,-557.25,0.00013863,2]
[353007072,1739485874299,-172.84066421,0.00013863,2]
[353007073,1739485874309,-687.87,0.00013863,2]
[353007074,1739485874319,-888.74,0.00013863,2]
[353007075,1739485874329,-500.0,0.00013863,2]
[353007076,1739485874338,-1131.23,0.00013863,2]
[353007077,1739485874348,-976.11,0.00013863,2]
[353007078,1739485874358,-548.09,0.00013863,2]
[353007079,1739485874370,-1065.2,0.00013863,2]
[353007080,1739485874379,-500.0,0.00013863,2]
[353007081,1739485874389,-500.0,0.00013863,2]
[353007082,1739485874399,-1519.15,0.00013863,2]
[353007083,1739485874408,-825.94,0.00013863,2]
[353007084,1739485874418,-717.12,0.00013863,2]
[353007085,1739485874428,-249.66779517,0.00013863,2]
[353007086,1739485874438,-718.5,0.00013863,2]
[353007087,1739485874447,-500.0,0.00013863,2]
[353007088,1739485874457,-534.49375898,0.00013863,2]
[353007089,1739485874467,-500.0,0.00013863,2]
[353007090,1739485874476,-500.0,0.00013863,2]
[353007091,1739485874486,-1464.62,0.00013863,2]
[353007092,1739485874496,-500.0,0.00013863,2]
[353007093,1739485874505,-1779.83,0.00013863,2]
[353007094,1739485874514,-551.0,0.00013863,2]
[353007095,1739485874524,-515.93990486,0.00013863,2]
[353007096,1739485874533,-1813.74,0.00013863,2]
[353007097,1739485874542,-500.0,0.00013863,2]
[353007098,1739485874552,-558.37,0.00013863,2]
[353007099,1739485874561,-807.26,0.00013863,2]
[353007100,1739485874571,-500.0,0.00013863,2]
[353007101,1739485874580,-500.0,0.00013863,2]
[353007102,1739485874590,-1306.72,0.00013863,2]
[353007103,1739485874599,-502.29396263,0.00013863,2]
[353007104,1739485874607,-1123.76,0.00013863,2]
[353007105,1739485874617,-500.0,0.00013863,2]
[353007106,1739485874625,-500.0,0.00013863,2]
[353007107,1739485874634,-844.9,0.00013863,2]
[353007108,1739485874643,-500.0,0.00013863,2]
[353007109,1739485874652,-2257.68,0.00013863,2]
[353007110,1739485874661,-831.33,0.00013863,2]
[353007111,1739485874671,-500.0,0.00013863,2]
[353007112,1739485874681,-923.9,0.00013863,2]
[353007113,1739485874691,-616.96528684,0.00013863,2]
[353007114,1739485874700,-500.0,0.00013863,2]
[353007115,1739485874710,-840.31,0.00013863,2]
[353007116,1739485874720,-500.0,0.00013863,2]
[353007117,1739485874730,-1270.71,0.00013863,2]
[353007118,1739485874740,-897.69,0.00013863,2]
[353007119,1739485874750,-853.17,0.00013863,2]
[353007120,1739485874760,-500.0,0.00013863,2]
[353007121,1739485874770,-500.64,0.00013863,2]
[353007122,1739485874780,-500.0,0.00013863,2]
[353007123,1739485874790,-500.0,0.00013863,2]
[353007124,1739485874799,-1705.94,0.00013863,2]
[353007125,1739485874809,-500.0,0.00013863,2]
[353007126,1739485874819,-876.71,0.00013863,2]
[353007127,1739485874829,-885.91,0.00013863,2]
[353007128,1739485874839,-500.0,0.00013863,2]
[353007129,1739485874848,-2161.09,0.00013863,2]
[353007130,1739485874858,-500.0,0.00013863,2]
[353007131,1739485874869,-500.0,0.00013863,2]
[353007132,1739485874879,-1238.79,0.00013863,2]
[353007133,1739485874889,-3040.0,0.00013863,2]
[353007134,1739485874899,-1105.8,0.00013863,2]
[353007135,1739485874909,-2265.19,0.00013863,2]
[353007136,1739485874919,-500.0,0.00013863,2]
[353007137,1739485874929,-1322.86,0.00013863,2]
[353007138,1739485874939,-500.0,0.00013863,2]
[353007139,1739485874949,-500.0,0.00013863,2]
[353007140,1739485874959,-646.18,0.00013863,2]
[353007141,1739485874969,-893.53,0.00013863,2]
[353007142,1739485874979,-906.34,0.00013863,2]
[353007143,1739485874989,-523.6,0.00013863,2]
[353007144,1739485874999,-500.0,0.00013863,2]
[353007145,1739485875010,-970.55,0.00013863,2]
[353007146,1739485875021,-702.31,0.00013863,2]
[353007147,1739485875031,-553.1,0.00013863,2]
[353007148,1739485875040,-2482.92,0.00013863,2]
[353007149,1739485875050,-500.0,0.00013863,2]
[353007150,1739485875062,-858.18,0.00013863,2]
[353007151,1739485875072,-669.76,0.00013863,2]
[353007152,1739485875082,-710.97,0.00013863,2]
[353007153,1739485875091,-302.11728164,0.00013863,2]
[353007154,1739485875103,-1892.5,0.00013863,2]
[353007155,1739485875113,-739.26,0.00013863,2]
[353007156,1739485875122,-1559.26,0.00013863,2]
[353007157,1739485875133,-500.0,0.00013863,2]
[353007158,1739485875142,-1326.07,0.00013863,2]
[353007159,1739485875151,-602.38,0.00013863,2]
[353007160,1739485875161,-500.0,0.00013863,2]
[353007161,1739485875171,-835.99,0.00013863,2]
[353007162,1739485875180,-1789.82,0.00013863,2]
[353007163,1739485875190,-500.0,0.00013863,2]
[353007164,1739485875199,-551.86,0.00013863,2]
[353007165,1739485875210,-1318.31,0.00013863,2]
[353007166,1739485875219,-500.0,0.00013863,2]
[353007167,1739485875229,-864.67,0.00013863,2]
[353007168,1739485875239,-500.0,0.00013863,2]
[353007169,1739485875248,-1994.16,0.00013863,2]
[353007170,1739485875258,-1141.82,0.00013863,2]
[353007171,1739485875268,-500.0,0.00013863,2]
[353007172,1739485875278,-504.6708023,0.00013863,2]
[353007173,1739485875287,-812.11,0.00013863,2]
[353007174,1739485875297,-500.0,0.00013863,2]
[353007175,1739485875307,-500.0,0.00013863,2]
[353007176,1739485875316,-859.06,0.00013863,2]
[353007177,1739485875327,-1079.19,0.00013863,2]
[353007178,1739485875337,-1941.15,0.00013863,2]
[353007179,1739485875347,-2409.32,0.00013863,2]
[353007180,1739485875357,-592.63,0.00013863,2]
[353007181,1739485875369,-900.38,0.00013863,2]
[353007182,1739485875379,-1741.64,0.00013863,2]
[353007183,1739485875389,-1010.42,0.00013863,2]
[353007184,1739485875399,-730.65,0.00013863,2]
[353007185,1739485875408,-1201.88,0.00013863,2]
[353007186,1739485875418,-500.0,0.00013863,2]
[353007187,1739485875428,-645.62,0.00013863,2]
[353007188,1739485875438,-2964.55,0.00013863,2]
[353007189,1739485875447,-765.27,0.00013863,2]
[353007190,1739485875457,-1693.27,0.00013863,2]
[353007191,1739485875466,-1023.18,0.00013863,2]
[353007192,1739485875476,-1983.35,0.00013863,2]
[353007193,1739485875486,-1199.21,0.00013863,2]
[353007194,1739485875496,-1991.14,0.00013863,2]
[353007195,1739485875506,-533.09,0.00013863,2]
[353007196,1739485875516,-2700.69,0.00013863,2]
[353007197,1739485875526,-500.0,0.00013863,2]
[353007198,1739485875536,-4281.75,0.00013863,2]
[353007199,1739485875545,-1072.56,0.00013863,2]
[353007200,1739485875555,-2181.51,0.00013863,2]
[353007201,1739485875564,-2105.12,0.00013863,2]
[353007202,1739485875574,-500.0,0.00013863,2]
[353007203,1739485875584,-2362.29,0.00013863,2]
[353007204,1739485875593,-797.65,0.00013863,2]
[353007205,1739485875603,-1372.43,0.00013863,2]
[353007206,1739485875615,-500.0,0.00013863,2]
[353007207,1739485875625,-500.0,0.00013863,2]
[353007208,1739485875635,-2270.27,0.00013863,2]
[353007209,1739485875646,-500.0,0.00013863,2]
[353007210,1739485875656,-701.26,0.00013863,2]
[353007211,1739485875666,-1635.6,0.00013863,2]
[353007212,1739485875675,-1210.46,0.00013863,2]
[353007213,1739485875685,-500.0,0.00013863,2]
[353007214,1739485875695,-1551.99,0.00013863,2]
[353007215,1739485875706,-500.0,0.00013863,2]
[353007216,1739485875717,-2766.93,0.00013863,2]
[353007217,1739485875727,-4033.58,0.00013863,2]
[353007218,1739485875737,-2765.04,0.00013863,2]
[353007219,1739485875747,-660.75,0.00013863,2]
[353007220,1739485875758,-2103.7,0.00013863,2]
[353007221,1739485875768,-924.48,0.00013863,2]
[353007222,1739485875778,-794.33,0.00013863,2]
[353007223,1739485875788,-1374.92,0.00013863,2]
[353007224,1739485875798,-1140.21,0.00013863,2]
[353007225,1739485875808,-500.0,0.00013863,2]
[353007226,1739485875818,-1394.91,0.00013863,2]
[353007227,1739485875828,-510.89030337,0.00013863,2]
[353007228,1739485875837,-2230.12,0.00013863,2]
[353007229,1739485875848,-500.0,0.00013863,2]
[353007230,1739485875858,-421.3248944,0.00013863,2]
[353007231,1739485875870,-878.31,0.00013863,2]
[353007232,1739485875880,-1071.07,0.00013863,2]
[353007233,1739485875891,-3342.84,0.00013863,2]
[353007234,1739485875901,-683.58,0.00013863,2]
[353007235,1739485875912,-1308.38,0.00013863,2]
[353007236,1739485875921,-3531.08,0.00013863,2]
[353007237,1739485875931,-1653.81,0.00013863,2]
[353007238,1739485875942,-553.67,0.00013863,2]
[353007239,1739485875952,-988.77,0.00013863,2]
[353007240,1739485876172,-500.0,0.00013863,2]
[353007241,1739485876183,-2226.29,0.00013863,2]
[353007242,1739485876192,-969.77,0.00013863,2]
[353007243,1739485876202,-1807.21,0.00013863,2]
[353007244,1739485876211,-1796.12,0.00013863,2]
[353007245,1739485876221,-500.0,0.00013863,2]
[353007246,1739485876231,-3314.33,0.00013863,2]
[353007247,1739485876240,-500.0,0.00013863,2]
[353007248,1739485876250,-3189.0,0.00013863,2]
[353007249,1739485876261,-803.11,0.00013863,2]
[353007250,1739485876270,-607.85,0.00013863,2]
[353007251,1739485876279,-761.91,0.00013863,2]
[353007252,1739485876289,-621.21,0.00013863,2]
[353007253,1739485876299,-1972.85,0.00013863,2]
[353007254,1739485876309,-523.93,0.00013863,2]
[353007255,1739485876318,-3990.94,0.00013863,2]
[353007256,1739485876328,-719.42,0.00013863,2]
[353007257,1739485876337,-749.77,0.00013863,2]
[353007258,1739485876346,-500.0,0.00013863,2]
[353007259,1739485876356,-1753.67,0.00013863,2]
[353007260,1739485876366,-2497.17,0.00013863,2]
[353007261,1739485876376,-3698.9,0.00013863,2]
[353007262,1739485876385,-1325.27,0.00013863,2]
[353007263,1739485876395,-500.0,0.00013863,2]
[353007264,1739485876403,-1628.89,0.00013863,2]
[353007265,1739485876413,-3120.71,0.00013863,2]
[353007266,1739485876422,-500.0,0.00013863,2]
[353007267,1739485876432,-511.69,0.00013863,2]
[353007268,1739485876441,-3912.39,0.00013863,2]
[353007269,1739485876450,-1203.12,0.00013863,2]
[353007270,1739485876460,-635.38,0.00013863,2]
[353007271,1739485876469,-500.0,0.00013863,2]
[353007272,1739485876478,-500.0,0.00013863,2]
[353007273,1739485876487,-1174.26,0.00013863,2]
[353007274,1739485876496,-500.0,0.00013863,2]
[353007275,1739485876505,-5014.48,0.00013863,2]
[353007276,1739485876516,-500.0,0.00013863,2]
[353007277,1739485876525,-591.53,0.00013863,2]
[353007278,1739485876535,-2834.89,0.00013863,2]
[353007279,1739485876544,-1129.98,0.00013863,2]
[353007280,1739485876554,-4012.08,0.00013863,2]
[353007281,1739485876563,-1877.06,0.00013863,2]
[353007282,1739485876572,-2305.18,0.00013863,2]
[353007283,1739485876582,-3400.07,0.00013863,2]
[353007284,1739485876591,-10601.94,0.00013863,2]
[353007285,1739485876600,-1278.06,0.00013863,2]
[353007286,1739485876610,-2677.19,0.00013863,2]
[353007287,1739485876620,-2091.53,0.00013863,2]
[353007288,1739485876629,-1914.19,0.00013863,2]
[353007289,1739485876638,-500.0,0.00013863,2]
[353007290,1739485876646,-1244.36,0.00013863,2]
[353007291,1739485876655,-6319.86,0.00013863,2]
[353007292,1739485876665,-2222.28,0.00013863,2]
[353007293,1739485876675,-2434.73,0.00013863,2]
[353007294,1739485876684,-1301.75,0.00013863,2]
[353007295,1739485876694,-3378.69,0.00013863,2]
[353007296,1739485876704,-1073.98,0.00013863,2]
[353007297,1739485876714,-500.0,0.00013863,2]
[353007298,1739485876723,-1003.25,0.00013863,2]
[353007299,1739485876733,-500.0,0.00013863,2]
[353007300,1739485876743,-3213.97,0.00013863,2]
[353007301,1739485876753,-1894.84,0.00013863,2]
[353007302,1739485876763,-500.0,0.00013863,2]
[353007303,1739485876773,-1618.51,0.00013863,2]
[353007304,1739485876782,-3027.83,0.00013863,2]
[353007305,1739485876792,-1463.57,0.00013863,2]
[353007306,1739485876802,-551.57,0.00013863,2]
[353007307,1739485876811,-1866.04,0.00013863,2]
[353007308,1739485876820,-3405.09,0.00013863,2]
[353007309,1739485876830,-3794.0,0.00013863,2]
[353007310,1739485876839,-3558.25,0.00013863,2]
[353007311,1739485876848,-1199.38,0.00013863,2]
[353007312,1739485876858,-972.02,0.00013863,2]
[353007313,1739485876870,-5141.78,0.00013863,2]
[353007314,1739485876879,-5036.58,0.00013863,2]
[353007315,1739485876889,-500.0,0.00013863,2]
[353007316,1739485876899,-1457.37,0.00013863,2]
[353007317,1739485876908,-4943.34,0.00013863,2]
[353007318,1739485876918,-500.0,0.00013863,2]
[353007319,1739485876928,-1646.26,0.00013863,2]
[353007320,1739485876937,-1023.76,0.00013863,2]
[353007321,1739485876947,-973.76,0.00013863,2]
[353007322,1739485876956,-392.24789593,0.00013863,2]
[353007323,1739485876966,-3488.7,0.00013863,2]
[353007324,1739485876975,-1078.92,0.00013863,2]
[353007325,1739485876984,-9947.08,0.00013863,2]
[353007326,1739485876994,-1167.35,0.00013863,2]
[353007327,1739485877003,-1925.44,0.00013863,2]
[353007328,1739485877019,-3871.01,0.00013863,2]
[353007329,1739485877028,-3374.31,0.00013863,2]
[353007330,1739485877038,-3262.34,0.00013863,2]
[353007331,1739485877048,-3751.7,0.00013863,2]
[353007332,1739485877058,-2216.47,0.00013863,2]
[353007333,1739485877068,-500.0,0.00013863,2]
[353007334,1739485877077,-351.72993024,0.00013863,2]
[353007335,1739485877090,-500.0,0.00013863,2]
[353007336,1739485877100,-1272.94,0.00013863,2]
[353007337,1739485877110,-2198.57,0.00013863,2]
[353007338,1739485877121,-3047.23,0.00013863,2]
[353007339,1739485877130,-474.3564789,0.00013863,2]
[353007340,1739485877140,-4282.13,0.00013863,2]
[353007341,1739485877150,-1579.29,0.00013863,2]
[353007342,1739485877159,-2262.09,0.00013863,2]
[353007343,1739485877169,-2034.1,0.00013863,2]
[353007344,1739485877179,-4796.16,0.00013863,2]
[353007345,1739485877188,-621.58,0.00013863,2]
[353007346,1739485877198,-4188.27,0.00013863,2]
[353007347,1739485877207,-5302.96,0.00013863,2]
[353007348,1739485877217,-2900.35,0.00013863,2]
[353007349,1739485877226,-500.0,0.00013863,2]
[353007350,1739485877235,-3352.12,0.00013863,2]
[353007351,1739485877245,-525.01,0.00013863,2]
[353007352,1739485877254,-2517.29,0.00013863,2]
[353007353,1739485877264,-3510.5,0.00013863,2]
[353007354,1739485877274,-500.0,0.00013863,2]
[353007355,1739485877283,-1911.76,0.00013863,2]
[353007356,1739485877294,-3186.25,0.00013863,2]
[353007357,1739485877303,-1411.53,0.00013863,2]
[353007358,1739485877312,-5245.34,0.00013863,2]
[353007359,1739485877322,-500.0,0.00013863,2]
[353007360,1739485877343,-4040.71,0.00013863,2]
[353007361,1739485877354,-2434.4,0.00013863,2]
[353007362,1739485877364,-797.43,0.00013863,2]
[353007363,1739485877375,-3997.95,0.00013863,2]
[353007364,1739485877384,-500.0,0.00013863,2]
[353007365,1739485877395,-3418.06,0.00013863,2]
[353007366,1739485877407,-3613.39,0.00013863,2]
[353007367,1739485877417,-500.0,0.00013863,2]
[353007368,1739485877428,-566.64,0.00013863,2]
[353007369,1739485877438,-500.0,0.00013863,2]
[353007370,1739485877449,-223.65258082,0.00013863,2]
[353007371,1739485877460,-500.0,0.00013863,2]
[353007372,1739485877471,-8838.73,0.00013863,2]
[353007373,1739485877481,-624.99,0.00013863,2]
[353007374,1739485877492,-720.74,0.00013863,2]
[353007375,1739485877503,-500.0,0.00013863,2]
[353007376,1739485877514,-3533.94,0.00013863,2]
[353007377,1739485877524,-3776.32,0.00013863,2]
[353007378,1739485877534,-522.13,0.00013863,2]
[353007379,1739485877544,-4171.69,0.00013863,2]
[353007380,1739485877554,-2767.11,0.00013863,2]
[353007381,1739485877564,-500.0,0.00013863,2]
[353007382,1739485877574,-1300.63,0.00013863,2]
[353007383,1739485877584,-3523.18,0.00013863,2]
[353007384,1739485877594,-4629.45,0.00013863,2]
[353007385,1739485877604,-2317.93,0.00013863,2]
[353007386,1739485877614,-542.74,0.00013863,2]
[353007387,1739485877624,-6501.79,0.00013863,2]
[353007388,1739485877635,-649.96,0.00013863,2]
[353007389,1739485877645,-585.92,0.00013863,2]
[353007390,1739485877655,-500.0,0.00013863,2]
[353007391,1739485877665,-596.27,0.00013863,2]
[353007392,1739485877675,-2852.77,0.00013863,2]
[353007393,1739485877685,-4468.57,0.00013863,2]
[353007394,1739485877696,-773.78,0.00013863,2]
[353007395,1739485877706,-724.47,0.00013863,2]
[353007396,1739485877715,-2513.38,0.00013863,2]
[353007397,1739485877725,-4071.43,0.00013863,2]
[353007398,1739485877735,-3680.29,0.00013863,2]
[353007399,1739485877746,-3113.41,0.00013863,2]
[353007400,1739485877756,-500.0,0.00013863,2]
[353007401,1739485877765,-964.12,0.00013863,2]
[353007402,1739485877776,-500.0,0.00013863,2]
[353007403,1739485877786,-500.0,0.00013863,2]
[353007404,1739485877796,-500.0,0.00013863,2]
[353007405,1739485877806,-500.0,0.00013863,2]
[353007406,1739485877815,-1523.71,0.00013863,2]
[353007407,1739485877826,-525.45,0.00013863,2]
[353007408,1739485877836,-741.53,0.00013863,2]
[353007409,1739485877846,-2768.98,0.00013863,2]
[353007410,1739485877856,-1470.77,0.00013863,2]
[353007411,1739485877867,-3441.38,0.00013863,2]
[353007412,1739485877877,-4132.51,0.00013863,2]
[353007413,1739485877887,-1712.88,0.00013863,2]
[353007414,1739485877897,-500.0,0.00013863,2]
[353007415,1739485877906,-4938.55,0.00013863,2]
[353007416,1739485877916,-2124.68,0.00013863,2]
[353007417,1739485877926,-1789.26,0.00013863,2]
[353007418,1739485877936,-1226.02,0.00013863,2]
[353007419,1739485877946,-1451.96,0.00013863,2]
[353007420,1739485877957,-500.0,0.00013863,2]
[353007421,1739485877969,-500.0,0.00013863,2]
[353007422,1739485877980,-3558.23,0.00013863,2]
[353007423,1739485877990,-824.05,0.00013863,2]
[353007424,1739485878000,-880.79,0.00013863,2]
[353007425,1739485878011,-4167.53,0.00013863,2]
[353007426,1739485878028,-1936.97,0.00013863,2]
[353007427,1739485878038,-1838.56,0.00013863,2]
[353007428,1739485878048,-2962.2,0.00013863,2]
[353007429,1739485878059,-598.78,0.00013863,2]
[353007430,1739485878069,-500.0,0.00013863,2]
[353007431,1739485878079,-709.99,0.00013863,2]
[353007432,1739485878088,-4502.56,0.00013863,2]
[353007433,1739485878098,-250.0,0.00013867,2]
[353007434,1739485878109,-500.0,0.0001389,2]
[353007435,1739485878121,-1563.0,0.0001389,2]
[353007436,1739485878130,-299.52613011,0.0001389,2]
[353007437,1739485878140,-3420.98,0.00013907,2]
[353007438,1739485878150,-500.0,0.00013917,2]
[353007439,1739485878160,-1563.0,0.00013917,2]
[353007440,1739485878170,-364.10598042,0.00013927,2]
[353007441,1739485878180,-500.0,0.00013945,2]
[353007442,1739485878191,-1563.0,0.00013945,2]
[353007443,1739485878201,-1124.476697,0.00013945,2]
[353007444,1739485878214,-1030.770305,0.00013945,2]
[353007445,1739485878224,-1369.077968,0.00013945,2]
[353007446,1739485878234,-500.0,0.00013945,2]
[353007447,1739485878243,-500.0,0.00013945,2]
[353007448,1739485878253,-781.27,0.00013945,2]
[353007449,1739485878263,-500.0,0.00013945,2]
[353007450,1739485878272,-640.12,0.00013945,2]
[353007451,1739485878282,-500.0,0.00013945,2]
[353007452,1739485878292,-500.0,0.00013945,2]
[353007453,1739485878302,-571.73,0.00013945,2]
[353007454,1739485878311,-500.0,0.00013945,2]
[353007455,1739485878321,-767.83,0.00013945,2]
[353007456,1739485878331,-500.0,0.00013945,2]
[353007457,1739485878341,-500.0,0.00013945,2]
[353007458,1739485878351,-517.58,0.00013945,2]
[353007459,1739485878360,-748.33,0.00013945,2]
[353007460,1739485878371,-500.0,0.00013945,2]
[353007461,1739485878381,-1019.36,0.00013945,2]
[353007462,1739485878392,-500.0,0.00013945,2]
[353007463,1739485878402,-500.0,0.00013945,2]
[353007464,1739485878412,-500.0,0.00013945,2]
[353007465,1739485878422,-500.0,0.00013945,2]
[353007466,1739485878432,-500.0,0.00013945,2]
[353007467,1739485878442,-500.0,0.00013945,2]
[353007468,1739485878452,-536.11,0.00013945,2]
[353007469,1739485878461,-511.24530542,0.00013945,2]
[353007470,1739485878471,-500.0,0.00013945,2]
[353007471,1739485878481,-853.88,0.00013945,2]
[353007472,1739485878491,-448.70782304,0.00013945,2]
[353007473,1739485878501,-500.0,0.00013945,2]
[353007474,1739485878511,-500.0,0.00013945,2]
[353007475,1739485878612,-500.0,0.00013945,2]
[353007476,1739485878623,-500.0,0.00013945,2]
[353007477,1739485878632,-1237.75,0.00013945,2]
[353007478,1739485878642,-506.72988095,0.00013945,2]
[353007479,1739485878651,-500.0,0.00013945,2]
[353007480,1739485878661,-500.0,0.00013945,2]
[353007481,1739485878670,-500.0,0.00013945,2]
[353007482,1739485878679,-500.0,0.00013945,2]
[353007483,1739485878689,-500.0,0.00013945,2]
[353007484,1739485878699,-500.0,0.00013945,2]
[353007485,1739485878708,-823.6,0.00013945,2]
[353007486,1739485878718,-500.0,0.00013945,2]
[353007487,1739485878727,-500.0,0.00013945,2]
[353007488,1739485878737,-500.0,0.00013945,2]
[353007489,1739485878746,-583.03,0.00013945,2]
[353007490,1739485878755,-588.86,0.00013945,2]
[353007491,1739485878764,-206.35029817,0.00013945,2]
[353007492,1739485878774,-500.0,0.00013945,2]
[353007493,1739485878783,-839.01,0.00013945,2]
[353007494,1739485878792,-632.18,0.00013945,2]
[353007495,1739485878803,-500.0,0.00013945,2]
[353007496,1739485878812,-500.0,0.00013945,2]
[353007497,1739485878822,-500.0,0.00013945,2]
[353007498,1739485878831,-1100.34,0.00013945,2]
[353007499,1739485878841,-500.0,0.00013945,2]
[353007500,1739485878850,-500.0,0.00013945,2]
[353007501,1739485878860,-907.89,0.00013945,2]
[353007502,1739485878869,-500.0,0.00013945,2]
[353007503,1739485878879,-458.1100597,0.00013945,2]
[353007504,1739485878888,-791.76,0.00013945,2]
[353007505,1739485878898,-500.0,0.00013945,2]
[353007506,1739485878907,-1002.52,0.00013945,2]
[353007507,1739485878917,-500.0,0.00013945,2]
[353007508,1739485878926,-673.2,0.00013945,2]
[353007509,1739485878936,-864.99,0.00013945,2]
[353007510,1739485878946,-569.15986432,0.00013945,2]
[353007511,1739485878955,-500.0,0.00013945,2]
[353007512,1739485878964,-606.37,0.00013945,2]
[353007513,1739485878973,-556.42,0.00013945,2]
[353007514,1739485878983,-500.0,0.00013945,2]
[353007515,1739485878993,-500.0,0.00013945,2]
[353007516,1739485879002,-500.0,0.00013945,2]
[353007517,1739485879015,-500.0,0.00013945,2]
[353007518,1739485879025,-500.0,0.00013945,2]
[353007519,1739485879034,-542.4,0.00013945,2]
[353007520,1739485879043,-500.0,0.00013945,2]
[353007521,1739485879054,-500.0,0.00013945,2]
[353007522,1739485879063,-606.89,0.00013945,2]
[353007523,1739485879072,-500.0,0.00013945,2]
[353007524,1739485879082,-551.03,0.00013945,2]
[353007525,1739485879091,-571.58,0.00013945,2]
[353007526,1739485879101,-507.69,0.00013945,2]
[353007527,1739485879110,-500.0,0.00013945,2]
[353007528,1739485879120,-500.0,0.00013945,2]
[353007529,1739485879129,-500.0,0.00013945,2]
[353007530,1739485879139,-500.0,0.00013945,2]
[353007531,1739485879148,-500.0,0.00013945,2]
[353007532,1739485879157,-500.0,0.00013945,2]
[353007533,1739485879166,-500.0,0.00013945,2]
[353007534,1739485879176,-500.0,0.00013945,2]
[353007535,1739485879185,-500.0,0.00013945,2]
[353007536,1739485879195,-500.0,0.00013945,2]
[353007537,1739485879204,-500.0,0.00013945,2]
[353007538,1739485879213,-500.0,0.00013945,2]
[353007539,1739485879223,-500.0,0.00013945,2]
[353007540,1739485879232,-2208.67,0.00013945,2]